Cogmind - Beta 16.1 @@@ ROGUE MODE // 2026.02.18 @ 01:52:59 Player: Megaknight51 Result: Destroyed by ZY-NLV(R) with Subdweller Beam Cannon Performance ------------- Evolutions (0) 0 Regions Visited (2) 400 Robots Destroyed (29) 145 Value Destroyed (867) 867 Prototype IDs (2) 40 Alien Tech Used (0) 0 Bonus (0) 0 TOTAL SCORE: 1452 Bonus ------- None Cogmind --------- Core Integrity 0/250 Matter 269/300 Energy 125/125 System Corruption 0% Temperature Cool (9) Movement Rolling (130) Ox2 Location -10/Subcaves Parts ------- > --- POWER (1) -------- Light Ion Engine > --- PROPULSION (2) --- Subdweller Monowheel > --- UTILITY (2) ------ High-capacity Storage Unit Seismic Detector > --- WEAPON (2) ------- Beam Cannon Light Cannon > --- INVENTORY (20) --- Subdweller Power Source Light Nuclear Core Improved Heat Sink Large Storage Unit Structural Scanner Subdweller Optics Subdweller Optics Improved Terrain Scanner Seismic Detector Scrap Shield Subdweller Laser Subdweller Beam Cannon Subdweller Machine Gun Subdweller Machine Gun Light Cannon Hammer Peak State ------------ > --- POWER ------------ Ion Engine > --- PROPULSION ------- Wheel Compact Wheel > --- UTILITY ---------- High-capacity Storage Unit Seismic Detector > --- WEAPON ----------- Beam Cannon Light Cannon > --- INVENTORY -------- Ion Engine Light Ion Engine Light Ion Engine Subdweller Power Source Light Nuclear Core Subdweller Monowheel Improved Heat Sink Medium Storage Unit Large Storage Unit Structural Scanner Subdweller Optics Improved Terrain Scanner Seismic Detector Light Armor Plating Assault Rifle Assault Rifle Light Assault Rifle Subdweller Machine Gun Light Cannon Hammer [Rating: 10] Favorites ----------- Power Ion Engine Engine Ion Engine Propulsion Compact Wheel Wheel Compact Wheel Utility High-capacity Storage Unit Device Seismic Detector Storage High-capacity Storage Unit Protection Light Armor Plating Weapon Light Cannon Energy Gun Small Laser Energy Cannon Beam Cannon Ballistic Cannon Light Cannon Special Weapon Mining Laser Impact Weapon Hammer Build | -11 -10 -10 ------- Run | Yrd Mat Sub Slots Evolved . | . . . Power . | . . . Propulsion . | . . . Utility . | . . . Weapon . | . . . Parts Attached 25 | 7 9 9 Power 4 | 1 . 3 Engine 4 | 1 . 3 Core . | . . . Reactor . | . . . Propulsion 5 | 2 1 2 Treads . | . . . Leg . | . . . Wheel 5 | 2 1 2 Hover . | . . . Flight . | . . . Utility 7 | 2 3 2 Device 2 | 1 . 1 Storage 3 | 1 2 . Processor . | . . . Hackware . | . . . Protection 2 | . 1 1 Artifact . | . . . Weapon 9 | 2 5 2 Energy Gun 2 | 2 . . Energy Cannon 1 | . . 1 Ballistic Gun . | . . . Ballistic Cannon 4 | . 3 1 Launcher . | . . . Special Weapon 1 | . 1 . Impact Weapon 1 | . 1 . Slashing Weapon . | . . . Piercing Weapon . | . . . Special Melee Weapon . | . . . Unidentified Prototypes . | . . . Parts Lost 10 | . 3 7 Power 2 | . 1 1 Propulsion 4 | . 1 3 Utility 2 | . . 2 Weapon 2 | . 1 1 Highest Loss Streak 2 | . 2 2 To Critical Strikes . | . . . Average Backups 16 | 3 13 18 Power 3 | 1 3 3 Propulsion 1 | . 1 . Utility 6 | . 4 8 Weapon 5 | 1 4 6 Tool/Special . | . . . Unused Backups 16 | . . 16 Power 2 | . . 2 Propulsion . | . . . Utility 7 | . . 7 Weapon 7 | . . 7 Tool/Special . | . . . Average Slot Usage (%) 89 | . 93 86 Engine 11 | . 9 12 Wheel 20 | . 28 16 Device 10 | . 8 12 Storage 14 | . 14 14 Protection 2 | . 3 1 Energy Gun 2 | . 7 . Energy Cannon 7 | . . 11 Ballistic Cannon 14 | . 15 13 Impact Weapon 3 | . 4 2 Peak Build Rating 10 | 8 8 10 Average Rating 8 | 6 7 9 On Entrance 5 | . 8 8 Avg Prop Armor Cover (%) . | . . . Naked Turns . | . . . Heaviest Build 54 | 11 50 54 Greatest Support 26 | 26 26 26 Greatest Overweight (x) 17 | . 1 17 Average Overweight (x) 1 | . . 2 Largest Inventory Capacity 20 | 8 20 20 Average Capacity 18 | 7 17 20 Most Carried 20 | 8 20 20 Average Carried 16 | 3 14 18 Final Capacity 20 | 8 20 20 Final Carried 19 | 8 19 17 Class Distribution -------------------- 100% | Mutant Dominant Class ---------------- Mutant | -10/Materials Mutant | -10/Subcaves Resources | -11 -10 -10 ----------- Run | Yrd Mat Sub Matter Collected 1031 | 270 261 500 Remotely . | . . . Salvage Created 878 | 184 387 307 Parts 49 | 17 21 11 Haulers Intercepted 1 | . 1 . Recyclers Shooed 1 | 1 . . Parts Field Recycled . | . . . Retrieved Matter . | . . . Parts Self-Destructed 10 | . . 10 Prevented . | . . . Parts Restored . | . . . Kills | -11 -10 -10 ------- Run | Yrd Mat Sub Combat Hostiles Destroyed 23 | . 12 11 Guns 2 | . 2 . Cannons 21 | . 10 11 Classes Destroyed 7 | 2 3 2 Tunneler 4 | 4 . . Hauler 1 | . 1 . Recycler 1 | 1 . . Swarmer 3 | . 3 . Grunt 11 | . 9 2 Sentry 1 | . . 1 Subdweller 8 | . . 8 Best Kill Streak 3 | 3 3 2 Combat Bots Only 3 | . 3 2 Max Kills in Single Turn 2 | 1 2 1 Gunslinging . | . . . Exploded . | . . . Melee . | . . . Uniques/NPCs Destroyed . | . . . Combat | -11 -10 -10 -------- Run | Yrd Mat Sub Hostile Shots Fired 121 | . 51 70 Missed 37 | . 13 24 Hits 84 | . 38 46 Projectile 84 | . 38 46 Critical Strikes 3 | . . 3 Damage Taken 1353 | . 403 950 Core 252 | . 59 193 Absorbed by Shields . | . . . Core Remaining (%) 100 | 100 . . Volleys Fired 97 | 8 39 50 Largest 2 | 2 2 2 Hottest 100 | 80 100 90 Shots Fired 187 | 16 72 99 Gun 28 | 16 12 . Cannon 155 | . 56 99 Launcher . | . . . Special 4 | . 4 . Kinetic 124 | . 56 68 Thermal 63 | 16 16 31 Explosive . | . . . Electromagnetic . | . . . Robot Hit Streak 18 | 14 17 18 Robot Miss Streak 5 | . 5 4 Penetration Max . | . . . Secondary Targets . | . . . Shots Hit Robots 129 | 14 40 75 Core Hits 45 | 6 18 21 Critical Kills . | . . . Critical Parts Destroyed . | . . . Critical Strikes 2 | . 1 1 Blast 2 | . 1 1 Melee Attacks 24 | . 16 8 Impact 24 | . 16 8 Slashing . | . . . Piercing . | . . . Sneak Attacks . | . . . Combat Hostiles . | . . . Follow-up Attacks . | . . . Damage Inflicted 2172 | 163 701 1308 Guns 275 | 163 112 . Cannons 1897 | . 589 1308 Explosions . | . . . Melee . | . . . Ramming . | . . . Kinetic 1489 | . 589 900 Thermal 683 | 163 112 408 Explosive . | . . . Electromagnetic . | . . . Impact . | . . . Slashing . | . . . Piercing . | . . . Highest Corruption . | . . . Average Corruption . | . . . Corruption Purged . | . . . Corruption Blocked . | . . . Overload Shots . | . . . Overflow Damage 5 | . 5 . Projectiles 5 | . 5 . Explosions . | . . . Melee . | . . . Knockbacks 25 | . 11 14 Impact . | . . . Kinetic 23 | . 9 14 Secondary 2 | . 2 . Self-Inflicted Damage . | . . . Shots . | . . . Rammed . | . . . Targets Rammed . | . . . Kicked . | . . . Crushed . | . . . Highest Temperature 90 | 90 72 20 Average Temperature 24 | 36 21 8 Received Heat Transfer 327 | . 156 171 Siege Activations . | . . . Martial Activations . | . . . Shielding Activations . | . . . Robots Disrupted . | . . . Combat Hostiles . | . . . Robots Corrupted . | . . . Combat Hostiles . | . . . Parts Fried . | . . . Impact Corruptions . | . . . Robots Melted . | . . . Combat Hostiles . | . . . Parts Melted 1 | 1 . . Heat Transferred 1451 | 350 250 851 Parts Sabotaged . | . . . Parts Stolen . | . . . Parts Stripped . | . . . Power Chain Reactions . | . . . Alert | -11 -10 -10 ------- Run | Yrd Mat Sub Maximum Alert Level . | . . . Low Security (%) 100 | 100 100 . Level 1 . | . . . Level 2 . | . . . Level 3 . | . . . Level 4 . | . . . Level 5 . | . . . High Security . | . . . Max Security . | . . . Peak Influence 146 | 10 146 . Initial . | . . . Average 41 | 2 45 . Influence Increases 535 | 25 440 70 Destroy 0b10 Robot/C 300 | . 240 60 Destroy 0b10 Robot/NC 30 | 25 5 . Destroy Leader 72 | . 62 10 Successful Hack 42 | . 42 . Select Force Hacks 60 | . 60 . Disable Machine 15 | . 15 . Destroy Structure 16 | . 16 . Influence Decreases 535 | 25 324 186 Entered New Map 56 | . . 56 Time Decay 416 | 25 294 97 Lost Part 63 | . 30 33 Squads Dispatched 4 | . 4 . Investigation 3 | . 3 . Extermination . | . . . Reinforcement 1 | . 1 . Assault . | . . . Garrison . | . . . Intercept . | . . . Searches Triggered . | . . . Construction Impeded . | . . . Haulers Reinforced . | . . . Active Scanning Responses . | . . . Cargo Convoy Interrupts . | . . . Stealth | -11 -10 -10 --------- Run | Yrd Mat Sub Distress Signals 2 | . 2 . Communications Jammed . | . . . Distress Signals . | . . . Times Spotted 36 | . 23 13 Peak Tracking Total 4 | . 4 2 Tactical Retreats . | . . . Traps | -11 -10 -10 ------- Run | Yrd Mat Sub Traps Triggered 1 | . 1 . Indirectly . | . . . Trap Hack Attempts . | . . . Triggered . | . . . Disarmed . | . . . Reprogrammed . | . . . Reused . | . . . Traps Extracted . | . . . Installed . | . . . Triggered . | . . . Machines | -11 -10 -10 ---------- Run | Yrd Mat Sub Machines Disabled 1 | . 1 . Max in Single Turn 1 | . 1 . Machines Repaired . | . . . Machines Dismantled . | . . . Machines Sabotaged . | . . . Overloaded Fab Kills . | . . . Hacking | -11 -10 -10 --------- Run | Yrd Mat Sub Machines Accessed 9 | . 9 . Terminals 7 | . 7 . Fabricators . | . . . Repair Stations . | . . . Recycling Units 2 | . 2 . Scanalyzers . | . . . Garrison Access . | . . . Total Hacks 21 | . 21 . Successful 14 | . 14 . Failed 7 | . 7 . Catastrophic . | . . . Database Lockouts . | . . . Manual 18 | . 18 . Terminals 19 | . 19 . Fabricators . | . . . Repair Stations . | . . . Recycling Units 2 | . 2 . Scanalyzers . | . . . Garrison Access . | . . . Terminal Hacks 7 | . 7 . Robot Analysis 4 | . 4 . Prototype ID Bank 1 | . 1 . Hauler Manifests 1 | . 1 . Registered Components 1 | . 1 . Fabricator Hacks . | . . . Repair Station Hacks . | . . . Recycling Unit Hacks . | . . . Scanalyzer . | . . . Garrison Access Hacks . | . . . Unauthorized Hacks 7 | . 7 . Terminals 5 | . 5 . Botnet 5 | . 5 . Fabricators . | . . . Repair Stations . | . . . Recycling Units 2 | . 2 . Tunnel 2 | . 2 . Scanalyzers . | . . . Garrison Access . | . . . Data Cores Recovered . | . . . Used . | . . . Hacking Detections 7 | . 7 . Full Trace Events . | . . . Feedback Events . | . . . Feedback Blocked . | . . . Robot Schematics Acquired . | . . . Robots Built . | . . . Authchips . | . . . Time . | . . . Total Robot Build Rating . | . . . Part Schematics Acquired . | . . . Parts Built . | . . . Authchips . | . . . Time . | . . . Total Part Build Rating . | . . . Part Studies Acquired . | . . . Parts Repaired . | . . . Time . | . . . Parts Recycled . | . . . Recycled Matter . | . . . Retrieved Matter . | . . . Retrieved Components . | . . . Parts Scanalyzed . | . . . Part Schematics Acquired . | . . . Parts Damaged . | . . . Bothacking | -11 -10 -10 ------------ Run | Yrd Mat Sub Used RIF Installer . | . . . Robots Hacked . | . . . Non-combat . | . . . Combat . | . . . Robot Hacks Applied . | . . . Relay Couplers Released . | . . . Fabnet Peak Effective % . | . . . Robots Rewired . | . . . Allies Hacked . | . . . Hacks Repelled . | . . . Allies | -11 -10 -10 -------- Run | Yrd Mat Sub Total Allies . | . . . Largest Group . | . . . Highest-Rated Group . | . . . Highest-Rated Ally . | . . . Total Orders . | . . . Ally Attacks . | . . . Total Damage . | . . . Kills . | . . . Allies Corrupted . | . . . Allies Melted . | . . . Intel | -11 -10 -10 ------- Run | Yrd Mat Sub Active Infowar (turns) 2083 | 59 597 1427 Seismic 2083 | 59 597 1427 Robot Analysis Total 4 | . 4 . Derelict Logs Recovered 2 | . . 2 Drone Launches . | . . . Drone Recoveries . | . . . Exploration | -11 -10 -10 ------------- Run | Yrd Mat Sub Turns Passed 2764 | 117 978 1669 Spaces Moved 1658 | 69 699 890 Core 26 | 2 . 24 Treads . | . . . Legs . | . . . Wheels 1632 | 67 699 866 Hover . | . . . Flight . | . . . Fastest Speed 50 | 50 90 105 Average Speed 123 | 88 100 143 Slowest Speed 900 | 90 105 900 Overloaded Moves . | . . . Propulsion Burnouts . | . . . Robots Hopped . | . . . Potential Cave-ins . | . . . Cave-ins Triggered . | . . . Exploration Rate (%) 50 | 3 98 50 Regions Visited 2 Branch Regions 1 Pre-discovered Areas 3 | . 2 1 Known Exits Taken . | . . . Unknown Exits Taken 2 | 1 1 . Scrap Searched 6 | . . 6 Spaces Dug 13 | . 13 . Terrain Destroyed 13 | . 13 . Melee 9 | . 9 . Projectile 4 | . 4 . AOE . | . . . Terrain Rammed . | . . . Walls Destroyed . | . . . Machines Disabled . | . . . Actions | -11 -10 -10 --------- Run | Yrd Mat Sub Total 2136 | 105 861 1170 Wait 279 | 14 78 187 Move 1656 | 68 698 890 Hop . | . . . Pick Up 30 | 8 12 10 Fast Attach 8 | 7 1 . Attach 10 | . 3 7 Detach 1 | . 1 . Swap 23 | . 11 12 Drop 8 | . 2 6 Fire 97 | 8 39 50 Melee 24 | . 16 8 Ram . | . . . Kick . | . . . Crush . | . . . Escape Stasis . | . . . Rewire . | . . . Trap . | . . . Miscellaneous . | . . . Route ------- -11/Scrapyard -10/Materials (discovered 6 exits: [*Mat x3] / [*Min x2] / [*Sub]) -10/Subcaves (discovered 2 exits: [*Mat] / [*Scr]) History --------- Turn | Location | Event 27 | -11/Scrapyard | Discovered new exit (range 16) 118 | -11/Scrapyard | Entered Materials 260 | -10/Materials | Discovered new exit (range 8) 317 | -10/Materials | Build established: Mutant 355 | -10/Materials | Discovered new exit (range 15) 414 | -10/Materials | Discovered new exit (range 3) 673 | -10/Materials | Discovered new exit (range 7) 956 | -10/Materials | Discovered new exit (range 7) 959 | -10/Materials | Discovered new exit (range 8) 1096 | -10/Materials | Entered Subcaves 1097 | -10/Subcaves | Approached by a straggling Scientist 1184 | -10/Subcaves | Learned location of 1 exit from Materials 1348 | -10/Subcaves | Scientist uncovered a shortcut to Scraptown 1353 | -10/Subcaves | Learned location of Zion (-6) 1387 | -10/Subcaves | Core integrity fell below 50% 1738 | -10/Subcaves | Disturbed a concealed Subdweller 2244 | -10/Subcaves | Core integrity fell below 20% 2356 | -10/Subcaves | Discovered new exit (range 8) 2765 | -10/Subcaves | Destroyed by ZY-NLV(R) with Subdweller Beam Cannon Last Messages --------------- 02259_ Destroyed Scrap Shield. 02265_ QA-UVK(R) destroyed. 02272_ Acquired 9 matter. 02274_ Acquired 7 matter. 02275_ Acquired 4 matter. 02279_ Acquired 5 matter. 02304_ 4B-5DK(R) knocked back. 02308_ 4B-5DK(R) affixes Scrap Shield Fragment to Scrap Shield. 02310_ 4B-5DK(R) destroyed. 02317_ Acquired 37 matter. 02319_ Acquired 4 matter. 02322_ Acquired 2 matter. 02356_ EXIT=FOUND 02647_ Y-45 Defender destroyed. 02651_ Acquired Lgt. Armor Plating. 02653_ Acquired Seismic Detector. 02654_ Acquired 53 matter. 02739_ Ion Engine destroyed. 02756_ ZY-NLV(R) knocked back. 02759_ Lgt. Armor Plating destroyed. Map ----- +----------------------------------------------------+ | ??????????????????# #?##??????????????????? | | ????????????????### ##?????????????????????? | | ????????????????# #??????????????????????? | | ????????????????# ##?????????????????????? | | ????????????????## ##????????????????????? | | ????????????????## #????????????????????? | | ????????????????# #????????????????????? | | ???????????????## #????????????????????? | | ???????????????# ##????????????????????? | | ???????????????# #?????????????????????? | | ???????????????## #?????????????????????? | | ???????????????## ###???????????????????? | | ??????????????## #???????????????????? | | ??????????????# #???????????????????? | | ??????????????# ##??????????????????? | | ??????????????# ####???????????????? | | ??????????????# #???????????????? | | ??????????????# % #???????????????? | | ??????????????##### #???????????????? | | ??????????????????#% ##???????????????? | | ??????????????????# ##?####???????????? | | ??????????????????# ##?# ##??????????? | | ?????????????????## R ### #??????????? | | ???????????????### ### #????????????? | | ???????????????# #?## ##???##??????? | | ???????????????# @##?# ### ### #??? | | ???????????????# ### #??? | | ??????????????## ## | | ??????????????# ### # # # | | ??????????????# ### #######??????#? | | ??????????????###; ## ######????????? | | ????????????????## ## ###??????? | | ?????????????????## ###????? | | ??????????????????## ##???? | | ???????????????????######## ##??? | | ??????????????????????##### ##?? | | ?????????????????????## | | ???????????????????### | | ???????????????????# ## | | ???????????????????# ## ########?? | | ???????????????????## ###############????????? | | ????????????????????###??????????????????????? | | ?????????????????????????????????????????????? | | ?????????????????????????????????????????????? | | ?????????????????????????????????????????????? | | ?????????????????????????????????????????????? | | ?????????????????????????????????????????????? | | ?????????????????????????????????????????????? | | ?????????????????????????????????????????????? | | ?????????????????????????????????????????????? | +----------------------------------------------------+ Best States ------------- Heat Dissipation 25 Energy Generation 10 Energy Capacity 250 Matter Stores 300 Matter Capacity 300 Sight Range 16 Terrain Scan Density 10 Armor Coverage 150 Evasion (%) 42 Item Schematics ----------------- None Robot Schematics ------------------ None Fabricated ------------ Nothing Repaired ---------- Nothing Studied --------- None Alien Tech Used ----------------- None Achievements -------------- None Challenges ------------ None Game ------ Seed ReflexMinesnifferClaws Manual? 0 Play Time 00:19:47 Cumulative 87.5 hours Start 2026.02.18 @ 01:35:25 End 2026.02.18 @ 01:52:59 Sessions 1 Manual Loads 0 Difficulty Rogue Special Mode None Game No. 179 Rogue 179 Adventurer 0 Explorer 0 Win Type - Total 1 Types 1/0/0/0/0/0/0/0/0/0 Lore% 50 Gallery% 38 Achievement% 38 Wizard Run 0 Options --------- Layout 0 ASCII 0 Keyboard 1 Movement Arrows Keybinds 0 Fullscreen 1 Font 18/Smallcaps Map View 38x25 Zoom Use 41% Tactical HUD 1 Map Filters NONE Filters NONE Steam 1 RUN: 325cfe23-5911-4ae0-a53d-8cac0eaf565f